fUSD/lending_fUSD_20250221
["ID","MTS","AMOUNT","RATE_DAILY","PERIOD"]
[353982055,1740172294975,-1092.95,0.00012517,2]
[353982056,1740172294985,-761.8,0.00012517,2]
[353982057,1740172294994,-931.16,0.00012517,2]
[353982058,1740172295005,-1001.35,0.00012517,2]
[353982059,1740172295014,-2093.79,0.00012517,2]
[353982060,1740172295025,-591.75,0.00012517,2]
[353982061,1740172295035,-757.37,0.00012517,2]
[353982062,1740172295045,-500.0,0.00012517,2]
[353982063,1740172295055,-1067.6,0.00012517,2]
[353982064,1740172295064,-1427.11,0.00012517,2]
[353982065,1740172295074,-782.56,0.00012517,2]
[353982066,1740172295083,-969.96,0.00012517,2]
[353982067,1740172295093,-842.52,0.00012517,2]
[353982068,1740172295102,-830.72,0.00012517,2]
[353982069,1740172295112,-663.66,0.00012517,2]
[353982070,1740172295121,-538.49,0.00012518,2]
[353982071,1740172295131,-691.94,0.00012518,2]
[353982072,1740172295141,-644.17,0.00012518,2]
[353982073,1740172295152,-504.22792144,0.00012518,2]
[353982074,1740172295162,-667.56,0.00012518,2]
[353982075,1740172295172,-756.41,0.00012518,2]
[353982076,1740172295183,-651.32,0.00012518,2]
[353982077,1740172295193,-500.0,0.00012518,2]
[353982078,1740172295204,-500.0,0.00012518,2]
[353982079,1740172295214,-552.92,0.00012518,2]
[353982080,1740172295224,-664.1,0.00012518,2]
[353982081,1740172295234,-500.0,0.00012518,2]
[353982082,1740172295245,-500.0,0.00012518,2]
[353982083,1740172295256,-641.81,0.00012518,2]
[353982084,1740172295266,-500.0,0.00012518,2]
[353982085,1740172295276,-529.44,0.00012518,2]
[353982086,1740172295286,-330.82324818,0.00012518,2]
[353982087,1740172295296,-500.0,0.00012518,2]
[353982088,1740172295306,-580.98,0.00012518,2]
[353982089,1740172295316,-656.48,0.00012518,2]
[353982090,1740172295326,-500.0,0.00012518,2]
[353982091,1740172295336,-645.51,0.00012518,2]
[353982092,1740172295346,-875.23,0.00012518,2]
[353982093,1740172295356,-819.32,0.00012518,2]
[353982094,1740172295366,-514.61,0.00012518,2]
[353982095,1740172295375,-681.73,0.00012518,2]
[353982096,1740172295385,-500.0,0.00012518,2]
[353982097,1740172295395,-773.23,0.00012518,2]
[353982098,1740172295405,-500.0,0.00012518,2]
[353982099,1740172295419,-193.607216,0.00012518,2]
[353982100,1740172295430,-760.5,0.00012518,2]
[353982101,1740172295440,-565.11,0.00012518,2]
[353982102,1740172295451,-500.0,0.00012518,2]
[353982103,1740172295461,-744.518321,0.00012518,2]
[353982104,1740172295471,-744.518321,0.00012518,2]
[353982105,1740172295481,-703.17,0.00012518,2]
[353982106,1740172295493,-500.0,0.00012518,2]
[353982107,1740172295505,-709.63,0.00012518,2]
[353982108,1740172295515,-562.69,0.00012518,2]
[353982109,1740172295525,-696.24,0.00012518,2]
[353982110,1740172295535,-567.21,0.00012518,2]
[353982111,1740172295545,-624.47712275,0.00012518,2]
[353982112,1740172295555,-694.16,0.00012518,2]
[353982113,1740172295566,-678.43,0.00012518,2]
[353982114,1740172295576,-690.55,0.00012518,2]
[353982115,1740172295587,-500.0,0.00012518,2]
[353982116,1740172295597,-663.28,0.00012518,2]
[353982117,1740172295607,-996.53,0.00012518,2]
[353982118,1740172295617,-731.38,0.00012518,2]
[353982119,1740172295627,-643.91,0.00012518,2]
[353982120,1740172295637,-156.366219,0.00012518,2]
[353982121,1740172295647,-335.82300596,0.00012518,2]
[353982122,1740172295657,-731.06,0.00012518,2]
[353982123,1740172295667,-500.0,0.00012518,2]
[353982124,1740172295677,-710.81,0.00012518,2]
[353982125,1740172295687,-500.6,0.00012518,2]
[353982126,1740172295697,-624.32,0.00012518,2]
[353982127,1740172295707,-595.44,0.00012518,2]
[353982128,1740172295717,-751.36,0.00012518,2]
[353982129,1740172295727,-636.57,0.00012518,2]
[353982130,1740172295738,-500.0,0.00012518,2]
[353982131,1740172295748,-893.82,0.00012518,2]
[353982132,1740172295759,-500.0,0.00012518,2]
[353982133,1740172295769,-174.831552,0.00012518,2]
[353982134,1740172295779,-587.07,0.00012518,2]
[353982135,1740172295788,-1704.14,0.00012518,2]
[353982136,1740172295798,-870.24,0.00012518,2]
[353982137,1740172295808,-523.06,0.00012518,2]
[353982138,1740172295818,-1140.49,0.00012518,2]
[353982139,1740172295829,-1885.94,0.00012518,2]
[353982140,1740172295839,-762.29,0.00012518,2]
[353982141,1740172295848,-1329.74,0.00012518,2]
[353982142,1740172295859,-985.36,0.00012518,2]
[353982143,1740172295868,-1050.0,0.00012518,2]
[353982144,1740172295881,-841.39,0.00012518,2]
[353982145,1740172295891,-1478.11,0.00012518,2]
[353982146,1740172295901,-1687.94,0.00012518,2]
[353982147,1740172295912,-1236.11,0.00012518,2]
[353982148,1740172295922,-527.93,0.00012518,2]
[353982149,1740172295933,-500.0,0.00012518,2]
[353982150,1740172295943,-836.59,0.00012518,2]
[353982151,1740172295953,-1031.57,0.00012518,2]
[353982152,1740172295965,-1035.44,0.00012518,2]
[353982153,1740172295975,-1245.12,0.00012518,2]
[353982154,1740172295986,-1117.96,0.00012518,2]
[353982155,1740172295996,-1068.45,0.00012518,2]
[353982156,1740172296008,-1183.89,0.00012518,2]
[353982157,1740172296019,-197.45367698,0.00012518,2]
[353982158,1740172296030,-1056.87,0.00012518,2]
[353982159,1740172296041,-5637.87,0.00012518,2]
[353982160,1740172296051,-797.09,0.00012518,2]
[353982161,1740172296061,-559.58,0.00012518,2]
[353982162,1740172296072,-1352.53,0.00012518,2]
[353982163,1740172296083,-739.7,0.00012518,2]
[353982164,1740172296093,-210.41457897,0.00012518,2]
[353982165,1740172296104,-1479.65,0.00012518,2]
[353982166,1740172296114,-271.62,0.00012518,2]
[353982167,1740172296124,-896.66,0.00012518,2]
[353982168,1740172296134,-2215.1,0.00012518,2]
[353982169,1740172296144,-1219.06,0.00012518,2]
[353982170,1740172296154,-500.0,0.00012518,2]
[353982171,1740172296166,-1253.82,0.00012518,2]
[353982172,1740172296176,-1134.86,0.00012518,2]
[353982173,1740172296186,-1523.22,0.00012518,2]
[353982174,1740172296195,-1190.42,0.00012518,2]
[353982175,1740172296205,-942.8,0.00012518,2]
[353982176,1740172296215,-500.0,0.00012518,2]
[353982177,1740172296225,-579.37,0.00012518,2]
[353982178,1740172296235,-1258.98,0.00012518,2]
[353982179,1740172296244,-1291.85,0.00012518,2]
[353982180,1740172296255,-661.23,0.00012518,2]
[353982181,1740172296265,-1149.69,0.00012518,2]
[353982182,1740172296275,-2660.4,0.00012518,2]
[353982183,1740172296285,-1991.69,0.00012518,2]
[353982184,1740172296295,-614.9,0.00012518,2]
[353982185,1740172296305,-1151.83,0.00012518,2]
[353982186,1740172296320,-811.74,0.00012518,2]
[353982187,1740172296335,-1450.82,0.00012518,2]
[353982188,1740172296349,-1170.09,0.00012518,2]
[353982189,1740172296362,-500.0,0.00012518,2]
[353982190,1740172296376,-500.0,0.00012518,2]
[353982191,1740172296389,-1737.05,0.00012518,2]
[353982192,1740172296404,-897.28,0.00012518,2]
[353982193,1740172296419,-500.0,0.00012518,2]
[353982194,1740172296432,-853.87,0.00012518,2]
[353982195,1740172296444,-638.91,0.00012518,2]
[353982196,1740172296459,-511.08,0.00012518,2]
[353982197,1740172296474,-1229.62,0.00012518,2]
[353982198,1740172296489,-580.46,0.00012518,2]
[353982199,1740172296506,-1513.79,0.00012518,2]
[353982200,1740172296520,-1136.08,0.00012518,2]
[353982201,1740172296535,-794.55,0.00012518,2]
[353982202,1740172296549,-1175.93,0.00012518,2]
[353982203,1740172296567,-500.0,0.00012518,2]
[353982204,1740172296580,-987.72,0.00012518,2]
[353982205,1740172296597,-731.97,0.00012518,2]
[353982206,1740172296611,-1199.69,0.00012518,2]
[353982207,1740172296624,-1172.47,0.00012518,2]
[353982208,1740172296636,-2284.05,0.00012518,2]
[353982209,1740172296648,-5314.28,0.00012518,2]
[353982210,1740172296664,-1158.45,0.00012518,2]
[353982211,1740172296674,-588.49,0.00012518,2]
[353982212,1740172296685,-500.0,0.00012518,2]
[353982213,1740172296701,-1637.66,0.00012518,2]
[353982214,1740172296714,-1092.4,0.00012518,2]
[353982215,1740172296725,-1130.79,0.00012518,2]
[353982216,1740172296740,-589.95,0.00012518,2]
[353982217,1740172296754,-961.8,0.00012518,2]
[353982218,1740172296767,-500.0,0.00012518,2]
[353982219,1740172296780,-839.71,0.00012518,2]
[353982220,1740172296793,-500.0,0.00012518,2]
[353982221,1740172296806,-597.77,0.00012518,2]
[353982222,1740172296819,-863.56,0.00012518,2]
[353982223,1740172296832,-2270.11,0.00012518,2]
[353982224,1740172296845,-2553.24,0.00012518,2]
[353982225,1740172296858,-500.0,0.00012518,2]
[353982226,1740172296872,-519.67,0.00012519,2]
[353982227,1740172296885,-500.0,0.00012519,2]
[353982228,1740172296898,-233.82916644,0.00012519,2]
[353982229,1740172296911,-500.0,0.00012519,2]
[353982230,1740172296924,-500.0,0.00012519,2]
[353982231,1740172296936,-151.0,0.0001252,2]
[353982232,1740172296949,-156.050572,0.0001252,2]
[353982233,1740172296961,-151.0,0.0001252,2]
[353982234,1740172296973,-2214.133311,0.0001252,2]
[353982235,1740172296985,-2214.133315,0.0001252,2]
[353982236,1740172296997,-500.0,0.00012521,2]
[353982237,1740172297010,-500.0,0.00012599,2]
[353982238,1740172297023,-649.82,0.00012599,2]
[353982239,1740172297035,-622.03,0.00012599,2]
[353982240,1740172297048,-1075.7,0.00012599,2]
[353982241,1740172297060,-855.71,0.00012599,2]
[353982242,1740172297072,-1013.9,0.00012599,2]
[353982243,1740172297084,-1231.28,0.00012599,2]
[353982244,1740172297096,-769.3,0.00012599,2]
[353982245,1740172297108,-916.53,0.00012599,2]
[353982246,1740172297120,-1480.7,0.00012599,2]
[353982247,1740172297131,-1452.9,0.00012599,2]
[353982248,1740172297143,-1092.95,0.00012599,2]
[353982249,1740172297155,-761.8,0.00012599,2]
[353982250,1740172297167,-931.16,0.00012599,2]
[353982251,1740172297178,-1001.35,0.00012599,2]
[353982252,1740172297190,-2093.79,0.00012599,2]
[353982253,1740172297202,-591.75,0.00012599,2]
[353982254,1740172297213,-757.37,0.00012599,2]
[353982255,1740172297225,-616.30831887,0.00012599,2]
[353982256,1740172297237,-1067.6,0.00012599,2]
[353982257,1740172297249,-1427.11,0.00012599,2]
[353982258,1740172297262,-969.96,0.00012599,2]
[353982259,1740172297274,-782.56,0.00012599,2]
[353982260,1740172297286,-842.52,0.00012599,2]
[353982261,1740172297298,-830.72,0.00012599,2]
[353982262,1740172297310,-663.66,0.00012599,2]
[353982263,1740172297322,-538.49,0.000126,2]
[353982264,1740172297334,-691.94,0.000126,2]
[353982265,1740172297348,-644.17,0.000126,2]
[353982266,1740172297360,-667.56,0.000126,2]
[353982267,1740172297372,-756.41,0.000126,2]
[353982268,1740172297385,-651.32,0.000126,2]
[353982269,1740172297397,-500.0,0.000126,2]
[353982270,1740172297411,-500.0,0.000126,2]
[353982271,1740172297425,-552.92,0.000126,2]
[353982272,1740172297438,-664.1,0.000126,2]
[353982273,1740172297452,-500.0,0.000126,2]
[353982274,1740172297464,-500.0,0.000126,2]
[353982275,1740172297476,-641.81,0.000126,2]
[353982276,1740172297489,-500.0,0.000126,2]
[353982277,1740172297501,-529.44,0.000126,2]
[353982278,1740172297512,-373.06359644,0.000126,2]
[353982279,1740172297524,-580.98,0.000126,2]
[353982280,1740172297536,-656.48,0.000126,2]
[353982281,1740172297548,-500.0,0.000126,2]
[353982282,1740172297559,-645.51,0.000126,2]
[353982283,1740172297571,-875.23,0.000126,2]
[353982284,1740172297583,-819.32,0.000126,2]
[353982285,1740172297594,-514.61,0.000126,2]
[353982286,1740172297606,-681.73,0.000126,2]
[353982287,1740172297617,-500.0,0.000126,2]
[353982288,1740172297629,-773.23,0.000126,2]
[353982289,1740172297640,-500.0,0.000126,2]
[353982290,1740172297653,-193.607216,0.000126,2]
[353982291,1740172297664,-760.5,0.000126,2]
[353982292,1740172297676,-565.11,0.000126,2]
[353982293,1740172297688,-500.0,0.000126,2]
[353982294,1740172297699,-703.17,0.000126,2]
[353982295,1740172297711,-500.0,0.000126,2]
[353982296,1740172297723,-709.63,0.000126,2]
[353982297,1740172297736,-562.69,0.000126,2]
[353982298,1740172297748,-696.24,0.000126,2]
[353982299,1740172297760,-567.21,0.000126,2]
[353982300,1740172297772,-694.16,0.000126,2]
[353982301,1740172297784,-678.43,0.000126,2]
[353982302,1740172297796,-690.55,0.000126,2]
[353982303,1740172297808,-500.0,0.000126,2]
[353982304,1740172297819,-663.28,0.000126,2]
[353982305,1740172297831,-996.53,0.000126,2]
[353982306,1740172297842,-731.38,0.000126,2]
[353982307,1740172297854,-643.91,0.000126,2]
[353982308,1740172297866,-731.06,0.000126,2]
[353982309,1740172297878,-500.0,0.000126,2]
[353982310,1740172297891,-710.81,0.000126,2]
[353982311,1740172297903,-500.6,0.000126,2]
[353982312,1740172297915,-624.32,0.000126,2]
[353982313,1740172297927,-595.44,0.000126,2]
[353982314,1740172297938,-748.0,0.000126,2]
[353982315,1740172297950,-751.36,0.000126,2]
[353982316,1740172297962,-871.0,0.000126,2]
[353982317,1740172297974,-636.57,0.000126,2]
[353982318,1740172297986,-500.0,0.000126,2]
[353982319,1740172297998,-893.82,0.000126,2]
[353982320,1740172298010,-500.0,0.000126,2]
[353982321,1740172298021,-174.831552,0.000126,2]
[353982322,1740172298036,-587.07,0.000126,2]
[353982323,1740172298048,-1704.14,0.000126,2]
[353982324,1740172298059,-870.24,0.000126,2]
[353982325,1740172298070,-523.06,0.000126,2]
[353982326,1740172298082,-1140.49,0.000126,2]
[353982327,1740172298094,-1885.94,0.000126,2]
[353982328,1740172298106,-762.29,0.000126,2]
[353982329,1740172298118,-985.36,0.000126,2]
[353982330,1740172298129,-1329.74,0.000126,2]
[353982331,1740172298142,-1050.0,0.000126,2]
[353982332,1740172298154,-841.39,0.000126,2]
[353982333,1740172298166,-1478.11,0.000126,2]
[353982334,1740172298177,-1687.94,0.000126,2]
[353982335,1740172298190,-1236.11,0.000126,2]
[353982336,1740172298203,-527.93,0.000126,2]
[353982337,1740172298215,-325.023928,0.000126,2]
[353982338,1740172298227,-474.98,0.000126,2]
[353982339,1740172298239,-836.59,0.000126,2]
[353982340,1740172298250,-1031.57,0.000126,2]
[353982341,1740172298264,-325.02393,0.000126,2]
[353982342,1740172298277,-1035.44,0.000126,2]
[353982343,1740172298289,-1245.12,0.000126,2]
[353982344,1740172298300,-1117.96,0.000126,2]
[353982345,1740172298313,-1068.45,0.000126,2]
[353982346,1740172298326,-1183.89,0.000126,2]
[353982347,1740172298338,-1056.87,0.000126,2]
[353982348,1740172298350,-5637.87,0.000126,2]
[353982349,1740172298362,-797.09,0.000126,2]
[353982350,1740172298374,-559.58,0.000126,2]
[353982351,1740172298386,-1352.53,0.000126,2]
[353982352,1740172298398,-739.7,0.000126,2]
[353982353,1740172298410,-1479.65,0.000126,2]
[353982354,1740172298424,-151.0,0.000126,2]
[353982355,1740172298436,-896.66,0.000126,2]
[353982356,1740172298448,-2215.1,0.000126,2]
[353982357,1740172298461,-1219.06,0.000126,2]
[353982358,1740172298473,-336.79382809,0.000126,2]
[353982359,1740172298754,-185.762104,0.000126,2]
[353982360,1740172298770,-1253.82,0.000126,2]
[353982361,1740172298780,-1134.86,0.000126,2]
[353982362,1740172298790,-185.7621,0.000126,2]
[353982363,1740172298799,-1523.22,0.000126,2]
[353982364,1740172298809,-1190.42,0.000126,2]
[353982365,1740172298819,-942.8,0.000126,2]
[353982366,1740172298828,-500.0,0.000126,2]
[353982367,1740172298839,-579.37,0.000126,2]
[353982368,1740172298849,-1258.98,0.000126,2]
[353982369,1740172298859,-1291.85,0.000126,2]
[353982370,1740172298868,-661.23,0.000126,2]
[353982371,1740172298878,-1149.69,0.000126,2]
[353982372,1740172298888,-2660.4,0.000126,2]
[353982373,1740172298898,-1991.69,0.000126,2]
[353982374,1740172298907,-614.9,0.000126,2]
[353982375,1740172298917,-1151.83,0.000126,2]
[353982376,1740172298927,-811.74,0.000126,2]
[353982377,1740172298937,-1450.82,0.000126,2]
[353982378,1740172298946,-734.0,0.000126,2]
[353982379,1740172298955,-1170.09,0.000126,2]
[353982380,1740172298965,-500.0,0.000126,2]
[353982381,1740172298975,-500.0,0.000126,2]
[353982382,1740172298984,-1737.05,0.000126,2]
[353982383,1740172298994,-897.28,0.000126,2]
[353982384,1740172299003,-500.0,0.000126,2]
[353982385,1740172299014,-853.87,0.000126,2]
[353982386,1740172299024,-638.91,0.000126,2]
[353982387,1740172299034,-511.08,0.000126,2]
[353982388,1740172299043,-1229.62,0.000126,2]
[353982389,1740172299052,-580.46,0.000126,2]
[353982390,1740172299062,-1513.79,0.000126,2]
[353982391,1740172299071,-1136.08,0.000126,2]
[353982392,1740172299081,-794.55,0.000126,2]
[353982393,1740172299090,-1175.93,0.000126,2]
[353982394,1740172299100,-500.0,0.000126,2]
[353982395,1740172299110,-987.72,0.000126,2]
[353982396,1740172299119,-731.97,0.000126,2]
[353982397,1740172299128,-1199.69,0.000126,2]
[353982398,1740172299137,-1172.47,0.000126,2]
[353982399,1740172299146,-2284.05,0.000126,2]
[353982400,1740172299155,-5314.28,0.000126,2]
[353982401,1740172299164,-1158.45,0.000126,2]
[353982402,1740172299174,-588.49,0.000126,2]
[353982403,1740172299183,-500.0,0.000126,2]
[353982404,1740172299192,-1637.66,0.000126,2]
[353982405,1740172299201,-1092.4,0.000126,2]
[353982406,1740172299210,-1130.79,0.000126,2]
[353982407,1740172299219,-589.95,0.000126,2]
[353982408,1740172299229,-961.8,0.000126,2]
[353982409,1740172299239,-839.71,0.000126,2]
[353982410,1740172299249,-500.0,0.000126,2]
[353982411,1740172299259,-597.77,0.000126,2]
[353982412,1740172299268,-863.56,0.000126,2]
[353982413,1740172299278,-2270.11,0.000126,2]
[353982414,1740172299288,-2553.24,0.000126,2]
[353982415,1740172299297,-500.0,0.000126,2]
[353982416,1740172299306,-519.67,0.00012601,2]
[353982417,1740172299316,-442.63209932,0.00012601,2]
[353982418,1740172299325,-500.0,0.00012601,2]
[353982419,1740172299334,-409.34978166,0.00012601,2]
[353982420,1740172299344,-151.0,0.00012601,2]
[353982421,1740172299353,-912.606375,0.00012601,2]
[353982422,1740172299362,-912.606372,0.00012601,2]
[353982423,1740172299371,-210.98615716,0.00012636,2]
[353982424,1740172299380,-715.95,0.00012654,2]
[353982425,1740172299390,-327.75,0.00012674,2]
[353982426,1740172299399,-500.0,0.00012681,2]
[353982427,1740172299411,-649.82,0.00012681,2]
[353982428,1740172299422,-622.03,0.00012681,2]
[353982429,1740172299431,-1075.7,0.00012681,2]
[353982430,1740172299440,-855.71,0.00012681,2]
[353982431,1740172299451,-1013.9,0.00012681,2]
[353982432,1740172299460,-1231.28,0.00012681,2]
[353982433,1740172299469,-769.3,0.00012681,2]
[353982434,1740172299479,-916.53,0.00012681,2]
[353982435,1740172299489,-1480.7,0.00012681,2]
[353982436,1740172299499,-1452.9,0.00012681,2]
[353982437,1740172299509,-1092.95,0.00012681,2]
[353982438,1740172299518,-761.8,0.00012681,2]
[353982439,1740172299527,-931.16,0.00012681,2]
[353982440,1740172299536,-1001.35,0.00012681,2]
[353982441,1740172299545,-2093.79,0.00012681,2]
[353982442,1740172299554,-591.75,0.00012681,2]
[353982443,1740172299563,-757.37,0.00012681,2]
[353982444,1740172299573,-1067.6,0.00012681,2]
[353982445,1740172299582,-1427.11,0.00012681,2]
[353982446,1740172299591,-969.96,0.00012681,2]
[353982447,1740172299600,-782.56,0.00012681,2]
[353982448,1740172299609,-842.52,0.00012681,2]
[353982449,1740172299619,-830.72,0.00012681,2]
[353982450,1740172299628,-663.66,0.00012681,2]
[353982451,1740172299637,-538.49,0.00012682,2]
[353982452,1740172299646,-691.94,0.00012682,2]
[353982453,1740172299655,-644.17,0.00012682,2]
[353982454,1740172299664,-667.56,0.00012682,2]
[353982455,1740172299673,-756.41,0.00012682,2]
[353982456,1740172299682,-651.32,0.00012682,2]
[353982457,1740172299692,-500.0,0.00012682,2]
[353982458,1740172299701,-500.0,0.00012682,2]
[353982459,1740172299710,-552.92,0.00012682,2]
[353982460,1740172299719,-664.1,0.00012682,2]
[353982461,1740172299729,-500.0,0.00012682,2]
[353982462,1740172299738,-477.71399108,0.00012682,2]
[353982463,1740172299748,-641.81,0.00012682,2]
[353982464,1740172299759,-215.38259168,0.00012682,2]
[353982465,1740172299769,-529.44,0.00012682,2]
[353982466,1740172299778,-580.98,0.00012682,2]
[353982467,1740172299787,-656.48,0.00012682,2]
[353982468,1740172299797,-500.0,0.00012682,2]
[353982469,1740172299806,-645.51,0.00012682,2]
[353982470,1740172299815,-875.23,0.00012682,2]
[353982471,1740172299824,-819.32,0.00012682,2]
[353982472,1740172299833,-514.61,0.00012682,2]
[353982473,1740172299843,-681.73,0.00012682,2]
[353982474,1740172299852,-500.0,0.00012682,2]
[353982475,1740172299862,-773.23,0.00012682,2]
[353982476,1740172299871,-500.0,0.00012682,2]
[353982477,1740172299883,-193.607216,0.00012682,2]
[353982478,1740172299893,-760.5,0.00012682,2]
[353982479,1740172299903,-565.11,0.00012682,2]
[353982480,1740172299913,-213.91837828,0.00012682,2]
[353982481,1740172299926,-744.518321,0.00012682,2]
[353982482,1740172299937,-744.518321,0.00012682,2]
[353982483,1740172299946,-703.17,0.00012682,2]
[353982484,1740172299955,-500.0,0.00012682,2]
[353982485,1740172299964,-709.63,0.00012682,2]
[353982486,1740172299974,-562.69,0.00012682,2]
[353982487,1740172299984,-696.24,0.00012682,2]
[353982488,1740172299994,-567.21,0.00012682,2]
[353982489,1740172300003,-694.16,0.00012682,2]
[353982490,1740172300013,-678.43,0.00012682,2]
[353982491,1740172300023,-690.55,0.00012682,2]
[353982492,1740172300033,-500.0,0.00012682,2]
[353982493,1740172300043,-151.0,0.00012682,2]
[353982494,1740172300052,-663.28,0.00012682,2]
[353982495,1740172300062,-996.53,0.00012682,2]
[353982496,1740172300071,-731.38,0.00012682,2]
[353982497,1740172300081,-643.91,0.00012682,2]
[353982498,1740172300090,-731.06,0.00012682,2]
[353982499,1740172300099,-500.0,0.00012682,2]
[353982500,1740172300108,-710.81,0.00012682,2]
[353982501,1740172300118,-500.6,0.00012682,2]
[353982502,1740172300133,-624.32,0.00012682,2]
[353982503,1740172300143,-595.44,0.00012682,2]
[353982504,1740172300152,-751.36,0.00012682,2]
[353982505,1740172300161,-636.57,0.00012682,2]
[353982506,1740172300170,-500.0,0.00012682,2]
[353982507,1740172300179,-893.82,0.00012682,2]
[353982508,1740172300189,-281.8400997,0.00012682,2]
[353982509,1740172300198,-174.831552,0.00012682,2]
[353982510,1740172300207,-587.07,0.00012682,2]
[353982511,1740172300216,-1704.14,0.00012682,2]
[353982512,1740172300225,-870.24,0.00012682,2]
[353982513,1740172300234,-523.06,0.00012682,2]
[353982514,1740172300243,-1140.49,0.00012682,2]
[353982515,1740172300252,-1885.94,0.00012682,2]
[353982516,1740172300263,-762.29,0.00012682,2]
[353982517,1740172300273,-985.36,0.00012682,2]
[353982518,1740172300283,-1329.74,0.00012682,2]
[353982519,1740172300293,-1050.0,0.00012682,2]
[353982520,1740172300302,-841.39,0.00012682,2]
[353982521,1740172300312,-1478.11,0.00012682,2]
[353982522,1740172300323,-1687.94,0.00012682,2]
[353982523,1740172300332,-1236.11,0.00012682,2]
[353982524,1740172300341,-527.93,0.00012682,2]
[353982525,1740172300351,-836.59,0.00012682,2]
[353982526,1740172300362,-1031.57,0.00012682,2]
[353982527,1740172300371,-1035.44,0.00012682,2]
[353982528,1740172300381,-1245.12,0.00012682,2]
[353982529,1740172300391,-1117.96,0.00012682,2]
[353982530,1740172300402,-1068.45,0.00012682,2]
[353982531,1740172300413,-1183.89,0.00012682,2]
[353982532,1740172300427,-1056.87,0.00012682,2]
[353982533,1740172300436,-5637.87,0.00012682,2]
[353982534,1740172300445,-559.58,0.00012682,2]
[353982535,1740172300455,-797.09,0.00012682,2]
[353982536,1740172300465,-1352.53,0.00012682,2]
[353982537,1740172300475,-739.7,0.00012682,2]
[353982538,1740172300483,-1479.65,0.00012682,2]
[353982539,1740172300494,-896.66,0.00012682,2]
[353982540,1740172300504,-2215.1,0.00012682,2]
[353982541,1740172300514,-1219.06,0.00012682,2]
[353982542,1740172300523,-1253.82,0.00012682,2]
[353982543,1740172300532,-1134.86,0.00012682,2]
[353982544,1740172300542,-1523.22,0.00012682,2]
[353982545,1740172300551,-1190.42,0.00012682,2]
[353982546,1740172300562,-942.8,0.00012682,2]
[353982547,1740172300571,-500.0,0.00012682,2]
[353982548,1740172300581,-579.37,0.00012682,2]
[353982549,1740172300591,-1258.98,0.00012682,2]
[353982550,1740172300600,-1291.85,0.00012682,2]
[353982551,1740172300610,-661.23,0.00012682,2]
[353982552,1740172300621,-1149.69,0.00012682,2]
[353982553,1740172300630,-2660.4,0.00012682,2]
[353982554,1740172300640,-1991.69,0.00012682,2]